[Event "November 21 Late 2023"]
[Site "https://www.chess.com"]
[Date "2023.11.21"]
[Round "8"]
[White "Chigaev, Maksim"]
[Black "Taher, Yoseph Theolifus"]
[Result "1-0"]
[Board "10"]
[TimeControl "180+1"]
[WhiteFideId "4108116"]
[BlackFideId "7105347"]
[WhiteElo "2561"]
[BlackElo "2352"]
[WhiteTeam "ESP"]
[BlackTeam "INA"]
[WhiteClock "0:00:08"]
[BlackClock "0:00:09"]

1. d4 {[%clk 0:03:00]}  Nf6 {[%clk 0:02:59]} 2. c4 {[%clk 0:03:01]}  c5 {[%clk 0:02:59]} 3. Nf3 {[%clk 0:03:00]}  cxd4 {[%clk 0:02:59]} 4. Nxd4 {[%clk 0:03:01]}  Nc6 {[%clk 0:03:00]} 5. Nc3 {[%clk 0:03:01]}  g6 {[%clk 0:03:00]} 6. e4 {[%clk 0:03:00]}  Bg7 {[%clk 0:03:01]} 7. Be3 {[%clk 0:02:44]}  O-O {[%clk 0:03:00]} 8. Be2 {[%clk 0:02:44]}  d6 {[%clk 0:03:00]} 9. O-O {[%clk 0:02:44]}  Bd7 {[%clk 0:02:59]} 10. h3 {[%clk 0:02:44]}  a5 {[%clk 0:02:59]} 11. Ndb5 {[%clk 0:02:41]}  a4 {[%clk 0:02:58]} 12. Rc1 {[%clk 0:02:39]}  Qa5 {[%clk 0:02:58]} 13. Qd2 {[%clk 0:02:37]}  Rfc8 {[%clk 0:02:58]} 14. Rb1 {[%clk 0:02:27]}  Ne5 {[%clk 0:02:56]} 15. Na3 {[%clk 0:02:18]}  Be6 {[%clk 0:02:54]} 16. Nd5 {[%clk 0:02:00]}  Qxd2 {[%clk 0:02:51]} 17. Bxd2 {[%clk 0:01:59]}  Nxe4 {[%clk 0:02:23]} 18. Nxe7+ {[%clk 0:01:49]}  Kf8 {[%clk 0:02:22]} 19. Nxc8 {[%clk 0:01:49]}  Nxd2 {[%clk 0:02:22]} 20. Nxd6 {[%clk 0:01:47]}  Nxf1 {[%clk 0:02:14]} 21. Bxf1 {[%clk 0:01:42]}  b6 {[%clk 0:02:12]} 22. Nab5 {[%clk 0:01:31]}  Rd8 {[%clk 0:01:56]} 23. b3 {[%clk 0:01:28]}  axb3 {[%clk 0:01:53]} 24. axb3 {[%clk 0:01:29]}  Ke7 {[%clk 0:01:53]} 25. Ne4 {[%clk 0:01:26]}  h6 {[%clk 0:01:47]} 26. Nec3 {[%clk 0:01:08]}  Rd2 {[%clk 0:01:39]} 27. Ra1 {[%clk 0:00:59]}  Nd3 {[%clk 0:01:20]} 28. Ra7+ {[%clk 0:00:54]}  Kd8 {[%clk 0:01:20]} 29. Ne4 {[%clk 0:00:35]}  Rd1 {[%clk 0:01:15]} 30. Nbc3 {[%clk 0:00:35]}  Re1 {[%clk 0:01:07]} 31. Ra8+ {[%clk 0:00:20]}  Kd7 {[%clk 0:01:04]} 32. Ra2 {[%clk 0:00:20]}  Nc1 {[%clk 0:00:43]} 33. Ra7+ {[%clk 0:00:10]}  Kd8 {[%clk 0:00:42]} 34. g4 {[%clk 0:00:08]}  Nxb3 {[%clk 0:00:35]} 35. Kg2 {[%clk 0:00:09]}  Rc1 {[%clk 0:00:29]} 36. Nd5 {[%clk 0:00:08]}  b5 {[%clk 0:00:26]} 37. Ra8+ {[%clk 0:00:07]}  Kd7 {[%clk 0:00:26]} 38. Ra7+ {[%clk 0:00:07]}  Kd8 {[%clk 0:00:24]} 39. Nd6 {[%clk 0:00:07]}  bxc4 {[%clk 0:00:17]} 40. Nxf7+ {[%clk 0:00:07]}  Bxf7 {[%clk 0:00:15]} 41. Rxf7 {[%clk 0:00:08]}  Be5 {[%clk 0:00:14]} 42. Nb4 {[%clk 0:00:08]}  c3 {[%clk 0:00:10]} 43. Nc6+ {[%clk 0:00:04]}  Ke8 {[%clk 0:00:11]} 44. Nxe5 {[%clk 0:00:05]}  c2 {[%clk 0:00:09]} 45. Bb5+ {[%clk 0:00:05]}  Kd8 {[%clk 0:00:09]} 46. Rd7+ {[%clk 0:00:06]}  Kc8 {[%clk 0:00:08]} 47. Ba6+ {[%clk 0:00:06]}  Kb8 {[%clk 0:00:09]} 48. Nc6+ {[%clk 0:00:07]}  Ka8 {[%clk 0:00:09]} 49. Ra7# {[%clk 0:00:08]} 1-0

[Event "November 21 Late 2023"]
[Site "https://www.chess.com"]
[Date "2023.11.21"]
[Round "8"]
[White "Ibarra Jerez, Jose Carlos"]
[Black "Eljanov, Pavel"]
[Result "1/2-1/2"]
[Board "11"]
[TimeControl "180+1"]
[WhiteFideId "2226332"]
[BlackFideId "14102951"]
[WhiteElo "2634"]
[BlackElo "2598"]
[WhiteTeam "ESP"]
[BlackTeam "UKR"]
[WhiteClock "0:00:34"]
[BlackClock "0:01:00"]

1. e4 {[%clk 0:03:00]}  c6 {[%clk 0:03:00]} 2. Nf3 {[%clk 0:03:00]}  d5 {[%clk 0:03:00]} 3. d3 {[%clk 0:03:00]}  dxe4 {[%clk 0:03:00]} 4. dxe4 {[%clk 0:03:01]}  Qxd1+ {[%clk 0:03:01]} 5. Kxd1 {[%clk 0:03:02]}  Nf6 {[%clk 0:03:01]} 6. Nbd2 {[%clk 0:03:00]}  g6 {[%clk 0:03:01]} 7. Ne5 {[%clk 0:03:00]}  Be6 {[%clk 0:02:53]} 8. f3 {[%clk 0:02:53]}  Bh6 {[%clk 0:02:50]} 9. Bc4 {[%clk 0:02:49]}  Bxc4 {[%clk 0:02:50]} 10. Ndxc4 {[%clk 0:02:49]}  Bxc1 {[%clk 0:02:49]} 11. Kxc1 {[%clk 0:02:50]}  Nfd7 {[%clk 0:02:44]} 12. Nd3 {[%clk 0:02:48]}  Kd8 {[%clk 0:02:41]} 13. a4 {[%clk 0:02:47]}  a5 {[%clk 0:02:37]} 14. c3 {[%clk 0:02:39]}  Kc7 {[%clk 0:02:37]} 15. Kc2 {[%clk 0:02:39]}  Nb6 {[%clk 0:02:19]} 16. Nxb6 {[%clk 0:02:16]}  Kxb6 {[%clk 0:02:20]} 17. Ne5 {[%clk 0:02:16]}  f6 {[%clk 0:02:19]} 18. Nc4+ {[%clk 0:02:16]}  Kc7 {[%clk 0:02:19]} 19. Rad1 {[%clk 0:02:16]}  Nd7 {[%clk 0:02:18]} 20. Rxd7+ {[%clk 0:02:04]}  Kxd7 {[%clk 0:02:18]} 21. Nb6+ {[%clk 0:02:04]}  Kc7 {[%clk 0:02:15]} 22. Nxa8+ {[%clk 0:02:05]}  Rxa8 {[%clk 0:02:16]} 23. Rd1 {[%clk 0:02:00]}  h5 {[%clk 0:02:09]} 24. h4 {[%clk 0:01:56]}  e5 {[%clk 0:02:09]} 25. Kb3 {[%clk 0:01:55]}  f5 {[%clk 0:02:02]} 26. Re1 {[%clk 0:01:49]}  f4 {[%clk 0:01:53]} 27. g3 {[%clk 0:01:19]}  fxg3 {[%clk 0:01:38]} 28. Rg1 {[%clk 0:01:19]}  Rf8 {[%clk 0:01:37]} 29. Rxg3 {[%clk 0:01:19]}  Rf6 {[%clk 0:01:37]} 30. Kc4 {[%clk 0:01:17]}  Kd6 {[%clk 0:01:38]} 31. b4 {[%clk 0:01:14]}  b6 {[%clk 0:01:27]} 32. bxa5 {[%clk 0:01:08]}  bxa5 {[%clk 0:01:27]} 33. Rg1 {[%clk 0:01:08]}  Kc7 {[%clk 0:01:23]} 34. Rg3 {[%clk 0:01:04]}  Kb6 {[%clk 0:01:18]} 35. Rh3 {[%clk 0:00:44]}  Rd6 {[%clk 0:01:02]} 36. Rg3 {[%clk 0:00:37]}  Rf6 {[%clk 0:01:02]} 37. Rh3 {[%clk 0:00:36]}  Rd6 {[%clk 0:01:01]} 38. Rg3 {[%clk 0:00:34]}  Rf6 {[%clk 0:01:00]} 1/2-1/2

[Event "November 21 Late 2023"]
[Site "https://www.chess.com"]
[Date "2023.11.21"]
[Round "8"]
[White "Kamsky, Gata"]
[Black "Rasulov, Vugar"]
[Result "1-0"]
[Board "12"]
[TimeControl "180+1"]
[WhiteFideId "2000024"]
[BlackFideId "13402390"]
[WhiteElo "2660"]
[BlackElo "2517"]
[WhiteTeam "USA"]
[BlackTeam "AZE"]
[WhiteClock "0:00:29"]
[BlackClock "0:00:00"]

1. d4 {[%clk 0:03:00]}  Nf6 {[%clk 0:03:00]} 2. Nf3 {[%clk 0:02:51]}  c5 {[%clk 0:02:57]} 3. d5 {[%clk 0:02:48]}  d6 {[%clk 0:02:56]} 4. Nc3 {[%clk 0:02:46]}  g6 {[%clk 0:02:55]} 5. e4 {[%clk 0:02:45]}  a6 {[%clk 0:02:54]} 6. a4 {[%clk 0:02:45]}  Bg4 {[%clk 0:02:53]} 7. Be2 {[%clk 0:02:45]}  Bxf3 {[%clk 0:02:52]} 8. Bxf3 {[%clk 0:02:45]}  Bg7 {[%clk 0:02:52]} 9. O-O {[%clk 0:02:45]}  O-O {[%clk 0:02:53]} 10. Be2 {[%clk 0:02:41]}  Nbd7 {[%clk 0:02:50]} 11. a5 {[%clk 0:02:39]}  b5 {[%clk 0:02:42]} 12. axb6 {[%clk 0:02:39]}  Qxb6 {[%clk 0:02:43]} 13. Kh1 {[%clk 0:02:37]}  a5 {[%clk 0:02:38]} 14. f3 {[%clk 0:02:36]}  Rfb8 {[%clk 0:02:24]} 15. Ra2 {[%clk 0:02:33]}  Qb4 {[%clk 0:02:11]} 16. Bd2 {[%clk 0:02:31]}  Qb6 {[%clk 0:02:06]} 17. b3 {[%clk 0:02:31]}  h5 {[%clk 0:02:01]} 18. Qe1 {[%clk 0:02:30]}  Ne5 {[%clk 0:01:59]} 19. Na4 {[%clk 0:02:29]}  Qc7 {[%clk 0:01:58]} 20. Nb2 {[%clk 0:02:28]}  Qd7 {[%clk 0:01:38]} 21. f4 {[%clk 0:02:16]}  Neg4 {[%clk 0:01:33]} 22. Bd3 {[%clk 0:02:15]}  e6 {[%clk 0:01:24]} 23. dxe6 {[%clk 0:02:13]}  Qxe6 {[%clk 0:01:24]} 24. h3 {[%clk 0:02:11]}  Nh6 {[%clk 0:01:21]} 25. Nc4 {[%clk 0:02:08]}  d5 {[%clk 0:01:17]} 26. f5 {[%clk 0:02:01]}  gxf5 {[%clk 0:01:14]} 27. exd5 {[%clk 0:02:00]}  Qxe1 {[%clk 0:01:09]} 28. Bxe1 {[%clk 0:01:59]}  Nxd5 {[%clk 0:01:09]} 29. Rxa5 {[%clk 0:01:58]}  Rxa5 {[%clk 0:01:08]} 30. Bxa5 {[%clk 0:01:58]}  Nb4 {[%clk 0:00:42]} 31. Bxb4 {[%clk 0:01:53]}  cxb4 {[%clk 0:00:43]} 32. Bxf5 {[%clk 0:01:51]}  Re8 {[%clk 0:00:34]} 33. Bd3 {[%clk 0:01:51]}  Bd4 {[%clk 0:00:31]} 34. g3 {[%clk 0:01:50]}  Kg7 {[%clk 0:00:30]} 35. Kg2 {[%clk 0:01:50]}  Bc3 {[%clk 0:00:27]} 36. Rf4 {[%clk 0:01:45]}  Re1 {[%clk 0:00:25]} 37. Rh4 {[%clk 0:01:44]}  Ng8 {[%clk 0:00:16]} 38. Rxh5 {[%clk 0:01:44]}  Nf6 {[%clk 0:00:17]} 39. Rg5+ {[%clk 0:01:44]}  Kh6 {[%clk 0:00:15]} 40. Rf5 {[%clk 0:01:44]}  Kg7 {[%clk 0:00:15]} 41. g4 {[%clk 0:01:45]}  Re7 {[%clk 0:00:11]} 42. g5 {[%clk 0:01:41]}  Nd7 {[%clk 0:00:10]} 43. h4 {[%clk 0:01:37]}  Ne5 {[%clk 0:00:09]} 44. Nxe5 {[%clk 0:01:26]}  Rxe5 {[%clk 0:00:10]} 45. Rf3 {[%clk 0:01:25]}  Rc5 {[%clk 0:00:05]} 46. Kh3 {[%clk 0:01:24]}  f6 {[%clk 0:00:05]} 47. g6 {[%clk 0:01:21]}  Re5 {[%clk 0:00:05]} 48. Kg4 {[%clk 0:01:19]}  Re1 {[%clk 0:00:05]} 49. Bf5 {[%clk 0:01:14]}  Kh6 {[%clk 0:00:05]} 50. Rd3 {[%clk 0:01:07]}  Rg1+ {[%clk 0:00:06]} 51. Kh3 {[%clk 0:01:02]}  Be5 {[%clk 0:00:05]} 52. Rf3 {[%clk 0:00:42]}  Rh1+ {[%clk 0:00:05]} 53. Kg2 {[%clk 0:00:41]}  Rxh4 {[%clk 0:00:04]} 54. Kf2 {[%clk 0:00:41]}  Rh2+ {[%clk 0:00:03]} 55. Ke3 {[%clk 0:00:41]}  Kg7 {[%clk 0:00:04]} 56. Kd3 {[%clk 0:00:41]}  Rh4 {[%clk 0:00:04]} 57. Be4 {[%clk 0:00:40]}  Rg4 {[%clk 0:00:02]} 58. Rh3 {[%clk 0:00:34]}  f5 {[%clk 0:00:02]} 59. Bxf5 {[%clk 0:00:32]}  Rd4+ {[%clk 0:00:03]} 60. Ke3 {[%clk 0:00:32]}  Kf6 {[%clk 0:00:03]} 61. Rf3 {[%clk 0:00:30]}  Kg7 {[%clk 0:00:02]} 62. Bd3 {[%clk 0:00:30]}  Rg4 {[%clk 0:00:02]} 63. Rf7+ {[%clk 0:00:29]}  Kh6 {[%clk 0:00:03]} 64. Rh7+ {[%clk 0:00:29]}  Kg5 {[%clk 0:00:03]} 65. Kf3 {[%clk 0:00:28]}  Rg3+ {[%clk 0:00:03]} 66. Ke4 {[%clk 0:00:29]}  Bc3 {[%clk 0:00:04]} 67. Kd5 {[%clk 0:00:29]}  Kf4 {[%clk 0:00:04]} 68. Ke6 {[%clk 0:00:29]}  Ke3 {[%clk 0:00:03]} 69. Kf7 {[%clk 0:00:28]}  Rf3+ {[%clk 0:00:04]} 70. Kg8 {[%clk 0:00:28]}  Rg3 {[%clk 0:00:04]} 71. g7 {[%clk 0:00:29]}  Kd2 {[%clk 0:00:03]} 72. Bf5 {[%clk 0:00:28]}  Rg5 {[%clk 0:00:02]} 73. Be6 {[%clk 0:00:27]}  Kxc2 {[%clk 0:00:02]} 74. Kf7 {[%clk 0:00:28]}  Rxg7+ {[%clk 0:00:01]} 75. Rxg7 {[%clk 0:00:28]}  Bxg7 {[%clk 0:00:02]} 76. Kxg7 {[%clk 0:00:28]}  Kc3 {[%clk 0:00:00]} 77. Kf6 {[%clk 0:00:29]} 1-0

[Event "November 21 Late 2023"]
[Site "https://www.chess.com"]
[Date "2023.11.21"]
[Round "8"]
[White "Deac, Bogdan-Daniel"]
[Black "Vadim_Galchenko"]
[Result "1-0"]
[Board "14"]
[TimeControl "180+1"]
[WhiteFideId "1226380"]
[WhiteElo "2641"]
[BlackElo "2592"]
[WhiteTeam "ROU"]
[WhiteClock "0:01:41"]
[BlackClock "0:01:37"]

1. b3 {[%clk 0:03:00]}  e5 {[%clk 0:02:50]} 2. Bb2 {[%clk 0:03:00]}  Nc6 {[%clk 0:02:50]} 3. Nf3 {[%clk 0:03:01]}  e4 {[%clk 0:02:50]} 4. Nd4 {[%clk 0:03:01]}  Nxd4 {[%clk 0:02:48]} 5. Bxd4 {[%clk 0:03:02]}  d5 {[%clk 0:02:47]} 6. e3 {[%clk 0:03:02]}  Bf5 {[%clk 0:02:48]} 7. Bb2 {[%clk 0:02:55]}  Qg5 {[%clk 0:02:45]} 8. c4 {[%clk 0:02:52]}  O-O-O {[%clk 0:02:37]} 9. cxd5 {[%clk 0:02:52]}  Rxd5 {[%clk 0:02:38]} 10. Nc3 {[%clk 0:02:51]}  Rd8 {[%clk 0:02:38]} 11. Qc2 {[%clk 0:02:41]}  Nf6 {[%clk 0:02:36]} 12. Nb5 {[%clk 0:02:41]}  c6 {[%clk 0:02:36]} 13. Nxa7+ {[%clk 0:02:34]}  Kb8 {[%clk 0:02:36]} 14. Nxc6+ {[%clk 0:02:34]}  bxc6 {[%clk 0:02:35]} 15. Qxc6 {[%clk 0:02:34]}  Bd6 {[%clk 0:01:52]} 16. Qb6+ {[%clk 0:01:47]}  Ka8 {[%clk 0:01:49]} 17. Bb5 {[%clk 0:01:47]}  Bd7 {[%clk 0:01:40]} 18. Qa6+ {[%clk 0:01:41]}  Kb8 {[%clk 0:01:37]} 19. Qxd6+ {[%clk 0:01:41]} 1-0

[Event "November 21 Late 2023"]
[Site "https://www.chess.com"]
[Date "2023.11.21"]
[Round "8"]
[White "Nazari, Arad"]
[Black "Khismatullin, Denis"]
[Result "1/2-1/2"]
[Board "16"]
[TimeControl "180+1"]
[WhiteFideId "12577324"]
[BlackFideId "4142578"]
[WhiteElo "2100"]
[BlackElo "2552"]
[WhiteTeam "IRI"]
[BlackTeam "RUS"]
[WhiteClock "0:00:07"]
[BlackClock "0:00:07"]

1. e4 {[%clk 0:02:57]}  c5 {[%clk 0:02:58]} 2. Nf3 {[%clk 0:02:58]}  e6 {[%clk 0:02:58]} 3. d4 {[%clk 0:02:58]}  cxd4 {[%clk 0:02:58]} 4. Nxd4 {[%clk 0:02:59]}  Nf6 {[%clk 0:02:58]} 5. Nc3 {[%clk 0:02:57]}  Nc6 {[%clk 0:02:59]} 6. Nxc6 {[%clk 0:02:56]}  bxc6 {[%clk 0:02:58]} 7. e5 {[%clk 0:02:57]}  Nd5 {[%clk 0:02:58]} 8. Ne4 {[%clk 0:02:57]}  Qc7 {[%clk 0:02:59]} 9. f4 {[%clk 0:02:56]}  a5 {[%clk 0:03:00]} 10. c4 {[%clk 0:02:56]}  Bb4+ {[%clk 0:02:59]} 11. Ke2 {[%clk 0:02:55]}  O-O {[%clk 0:02:59]} 12. a3 {[%clk 0:02:45]}  Be7 {[%clk 0:02:57]} 13. cxd5 {[%clk 0:02:46]}  cxd5 {[%clk 0:02:58]} 14. Nd6 {[%clk 0:02:46]}  f6 {[%clk 0:02:57]} 15. Be3 {[%clk 0:02:02]}  fxe5 {[%clk 0:02:43]} 16. fxe5 {[%clk 0:02:03]}  Bxd6 {[%clk 0:02:36]} 17. exd6 {[%clk 0:02:03]}  Qxd6 {[%clk 0:02:36]} 18. Rc1 {[%clk 0:01:52]}  Rb8 {[%clk 0:02:34]} 19. Qd2 {[%clk 0:01:43]}  Qe5 {[%clk 0:02:22]} 20. b4 {[%clk 0:01:29]}  axb4 {[%clk 0:02:17]} 21. axb4 {[%clk 0:01:30]}  Rf4 {[%clk 0:02:06]} 22. Kd1 {[%clk 0:00:56]}  Rfxb4 {[%clk 0:02:02]} 23. Ba7 {[%clk 0:00:41]}  Rb2 {[%clk 0:01:53]} 24. Qd4 {[%clk 0:00:31]}  Qxd4+ {[%clk 0:01:19]} 25. Bxd4 {[%clk 0:00:32]}  Ra2 {[%clk 0:01:17]} 26. Be5 {[%clk 0:00:27]}  Rba8 {[%clk 0:01:15]} 27. Be2 {[%clk 0:00:21]}  Ba6 {[%clk 0:01:05]} 28. Bxa6 {[%clk 0:00:18]}  R2xa6 {[%clk 0:01:03]} 29. Re1 {[%clk 0:00:12]}  d6 {[%clk 0:01:01]} 30. Bg3 {[%clk 0:00:11]}  e5 {[%clk 0:01:01]} 31. Rc7 {[%clk 0:00:12]}  d4 {[%clk 0:00:59]} 32. Kd2 {[%clk 0:00:10]}  Ra2+ {[%clk 0:00:58]} 33. Kd3 {[%clk 0:00:10]}  Rxg2 {[%clk 0:00:53]} 34. Rb1 {[%clk 0:00:08]}  Kh8 {[%clk 0:00:38]} 35. Rbb7 {[%clk 0:00:07]}  Rg8 {[%clk 0:00:38]} 36. Rd7 {[%clk 0:00:06]}  h5 {[%clk 0:00:32]} 37. Rxd6 {[%clk 0:00:06]}  h4 {[%clk 0:00:31]} 38. Bxe5 {[%clk 0:00:06]}  Kh7 {[%clk 0:00:28]} 39. Rdd7 {[%clk 0:00:05]}  Kh6 {[%clk 0:00:25]} 40. Kxd4 {[%clk 0:00:04]}  g5 {[%clk 0:00:17]} 41. Rh7+ {[%clk 0:00:02]}  Kg6 {[%clk 0:00:17]} 42. Rhd7 {[%clk 0:00:02]}  Kf5 {[%clk 0:00:16]} 43. h3 {[%clk 0:00:02]}  Rd2+ {[%clk 0:00:15]} 44. Ke3 {[%clk 0:00:01]}  Rxd7 {[%clk 0:00:16]} 45. Rxd7 {[%clk 0:00:01]}  Kxe5 {[%clk 0:00:17]} 46. Kf3 {[%clk 0:00:01]}  Kf5 {[%clk 0:00:16]} 47. Rd5+ {[%clk 0:00:02]}  Ke6 {[%clk 0:00:16]} 48. Rb5 {[%clk 0:00:02]}  Kf6 {[%clk 0:00:11]} 49. Kg4 {[%clk 0:00:03]}  Rc8 {[%clk 0:00:09]} 50. Rf5+ {[%clk 0:00:03]}  Ke6 {[%clk 0:00:09]} 51. Rxg5 {[%clk 0:00:03]}  Rc4+ {[%clk 0:00:08]} 52. Kh5 {[%clk 0:00:03]}  Kf6 {[%clk 0:00:08]} 53. Rg6+ {[%clk 0:00:03]}  Kf7 {[%clk 0:00:08]} 54. Rg5 {[%clk 0:00:03]}  Kf6 {[%clk 0:00:07]} 55. Rg1 {[%clk 0:00:04]}  Ra4 {[%clk 0:00:06]} 56. Rg4 {[%clk 0:00:03]}  Rxg4 {[%clk 0:00:05]} 57. Kxg4 {[%clk 0:00:04]}  Kg6 {[%clk 0:00:05]} 58. Kxh4 {[%clk 0:00:05]}  Kh6 {[%clk 0:00:06]} 59. Kg3 {[%clk 0:00:05]}  Kg6 {[%clk 0:00:06]} 60. h4 {[%clk 0:00:06]}  Kh6 {[%clk 0:00:07]} 61. h5 {[%clk 0:00:07]}  Kxh5 {[%clk 0:00:07]} 1/2-1/2

[Event "November 21 Late 2023"]
[Site "https://www.chess.com"]
[Date "2023.11.21"]
[Round "8"]
[White "Galchenko, Matvey"]
[Black "Sydoryka, Vladyslav"]
[Result "1-0"]
[Board "17"]
[TimeControl "180+1"]
[WhiteFideId "24175480"]
[BlackFideId "14145928"]
[WhiteElo "2406"]
[BlackElo "2271"]
[WhiteTeam "FID"]
[BlackTeam "UKR"]
[WhiteClock "0:02:12"]
[BlackClock "0:00:27"]

1. e4 {[%clk 0:03:00]}  c6 {[%clk 0:03:00]} 2. d4 {[%clk 0:03:00]}  d5 {[%clk 0:03:01]} 3. exd5 {[%clk 0:03:01]}  cxd5 {[%clk 0:03:02]} 4. Bd3 {[%clk 0:03:02]}  Nc6 {[%clk 0:03:02]} 5. c3 {[%clk 0:03:03]}  Qc7 {[%clk 0:03:03]} 6. h3 {[%clk 0:03:03]}  g6 {[%clk 0:03:03]} 7. Nf3 {[%clk 0:03:01]}  Bf5 {[%clk 0:03:03]} 8. Be2 {[%clk 0:03:01]}  Bg7 {[%clk 0:03:03]} 9. O-O {[%clk 0:03:02]}  Nf6 {[%clk 0:03:04]} 10. Re1 {[%clk 0:03:02]}  O-O {[%clk 0:03:05]} 11. Be3 {[%clk 0:03:01]}  Rfe8 {[%clk 0:03:00]} 12. Qc1 {[%clk 0:02:56]}  e5 {[%clk 0:02:37]} 13. dxe5 {[%clk 0:02:55]}  Nxe5 {[%clk 0:02:37]} 14. Nxe5 {[%clk 0:02:55]}  Qxe5 {[%clk 0:02:38]} 15. Nd2 {[%clk 0:02:55]}  Qc7 {[%clk 0:02:19]} 16. Nf3 {[%clk 0:02:52]}  Ne4 {[%clk 0:02:07]} 17. Nd4 {[%clk 0:02:49]}  Bd7 {[%clk 0:01:58]} 18. Bf3 {[%clk 0:02:48]}  Rad8 {[%clk 0:01:55]} 19. Qd1 {[%clk 0:02:37]}  a6 {[%clk 0:01:36]} 20. Qb3 {[%clk 0:02:34]}  Nc5 {[%clk 0:01:33]} 21. Qc2 {[%clk 0:02:29]}  Bc8 {[%clk 0:01:14]} 22. Rad1 {[%clk 0:02:25]}  Ne6 {[%clk 0:00:53]} 23. Nxe6 {[%clk 0:02:17]}  fxe6 {[%clk 0:00:54]} 24. Qb3 {[%clk 0:02:15]}  Bd7 {[%clk 0:00:49]} 25. Bb6 {[%clk 0:02:14]}  Qc6 {[%clk 0:00:40]} 26. Bxd8 {[%clk 0:02:13]}  Rxd8 {[%clk 0:00:27]} 27. Rxd5 {[%clk 0:02:12]} 1-0

[Event "November 21 Late 2023"]
[Site "https://www.chess.com"]
[Date "2023.11.21"]
[Round "8"]
[White "Sjugirov, Sanan"]
[Black "OPQRC"]
[Result "1-0"]
[Board "20"]
[TimeControl "180+1"]
[WhiteFideId "4189302"]
[WhiteElo "2569"]
[BlackElo "2644"]
[WhiteTeam "HUN"]
[WhiteClock "0:00:58"]
[BlackClock "0:00:24"]

1. d4 {[%clk 0:02:58]}  Nf6 {[%clk 0:02:59]} 2. c4 {[%clk 0:02:58]}  g6 {[%clk 0:03:00]} 3. Nc3 {[%clk 0:02:57]}  Bg7 {[%clk 0:03:00]} 4. e4 {[%clk 0:02:57]}  d6 {[%clk 0:03:01]} 5. Nf3 {[%clk 0:02:58]}  O-O {[%clk 0:03:01]} 6. Be2 {[%clk 0:02:58]}  Nbd7 {[%clk 0:03:02]} 7. h3 {[%clk 0:02:57]}  e5 {[%clk 0:03:01]} 8. d5 {[%clk 0:02:57]}  Nc5 {[%clk 0:02:30]} 9. Qc2 {[%clk 0:02:56]}  a5 {[%clk 0:02:30]} 10. g4 {[%clk 0:02:51]}  c6 {[%clk 0:02:30]} 11. Be3 {[%clk 0:02:48]}  cxd5 {[%clk 0:02:29]} 12. cxd5 {[%clk 0:02:47]}  Rb8 {[%clk 0:02:25]} 13. Bxc5 {[%clk 0:02:29]}  dxc5 {[%clk 0:02:25]} 14. Bb5 {[%clk 0:02:15]}  Nxe4 {[%clk 0:02:15]} 15. Nxe4 {[%clk 0:02:09]}  f5 {[%clk 0:02:15]} 16. gxf5 {[%clk 0:02:07]}  gxf5 {[%clk 0:02:11]} 17. Ng3 {[%clk 0:01:31]}  e4 {[%clk 0:02:05]} 18. Nh5 {[%clk 0:01:17]}  exf3 {[%clk 0:01:45]} 19. Rg1 {[%clk 0:01:16]}  Rf7 {[%clk 0:01:44]} 20. O-O-O {[%clk 0:01:09]}  Bd7 {[%clk 0:01:30]} 21. Bxd7 {[%clk 0:01:04]}  Rxd7 {[%clk 0:01:23]} 22. Qxf5 {[%clk 0:01:03]}  Kh8 {[%clk 0:00:24]} 23. Nxg7 {[%clk 0:00:58]} 1-0